bitfinex/quotes_SOLUSD_20230110
["timestamp","ask_amount","ask_price","bid_price","bid_amount"]
[1673358082914,5.6687597,15.901,15.884,68.19]
[1673358083129,5.6687597,15.901,15.885,20.96]
[1673358083332,5.6687597,15.901,15.886,64.23]
[1673358083541,5.6687597,15.901,15.887,40.0]
[1673358083775,5.6687597,15.901,15.888,47.22]
[1673358083965,5.6687597,15.901,15.889,20.0]
[1673358086071,5.6687597,15.901,15.89,17.0]
[1673358086808,5.6687597,15.901,15.89,37.0]
[1673358087779,5.6687597,15.901,15.89,17.0]
[1673358088297,5.6687597,15.901,15.891,20.0]
[1673358088701,5.6687597,15.901,15.889,20.0]
[1673358089647,5.6687597,15.901,15.89,20.0]
[1673358090272,26.99,15.9,15.889,20.0]
[1673358090497,47.19,15.899,15.874,114.5929]
[1673358090719,20.0,15.897,15.875,20.0]
[1673358091026,20.0,15.895,15.877,20.0]
[1673358091236,47.2,15.894,15.877,20.0]
[1673358091434,20.0,15.893,15.877,20.0]
[1673358091976,20.0,15.893,15.875,67.26]
[1673358092286,135.05,15.89,15.865,47.29]
[1673358092503,20.0,15.888,15.866,20.0]
[1673358092697,64.22,15.887,15.867,47.28]
[1673358092902,20.0,15.886,15.868,20.0]
[1673358093114,47.23,15.885,15.868,20.0]
[1673358094906,20.0,15.884,15.868,20.0]
[1673358095232,47.23,15.885,15.868,20.0]
[1673358096053,47.23,15.885,15.869,17.0]
[1673358096262,47.22,15.887,15.87,20.0]
[1673358096694,20.0,15.886,15.869,47.28]
[1673358097019,47.23,15.885,15.87,17.0]
[1673358097203,47.23,15.885,15.868,20.0]
[1673358097419,20.0,15.886,15.87,20.0]
[1673358097844,67.23,15.886,15.871,17.0]
[1673358098271,67.23,15.886,15.87,17.0]
[1673358098480,67.23,15.886,15.869,17.0]
[1673358098907,20.0,15.884,15.869,17.0]
[1673358099129,47.24,15.883,15.869,17.0]
[1673358099756,47.24,15.883,15.866,67.29]
[1673358099947,47.24,15.883,15.867,20.0]
[1673358100164,47.23,15.884,15.867,20.0]
[1673358100367,47.23,15.885,15.867,20.0]
[1673358100593,20.0,15.884,15.868,20.0]
[1673358100800,47.24,15.883,15.87,20.0]
[1673358100993,20.0,15.887,15.87,20.0]
[1673358101208,47.22,15.888,15.872,20.0]
[1673358101437,47.22,15.889,15.873,84.26]
[1673358101642,47.22,15.889,15.874,20.0]
[1673358101854,47.22,15.889,15.875,37.0]
[1673358102703,47.22,15.889,15.876,20.0]
[1673358102904,47.22,15.889,15.877,20.0]
[1673358103537,20.0,15.888,15.868,67.28]
[1673358103852,20.0,15.886,15.869,134.3356]
[1673358104067,20.0,15.884,15.869,134.3356]
[1673358105097,47.23,15.885,15.869,134.3356]
[1673358106565,67.23,15.886,15.869,181.6156]
[1673358107716,20.0,15.886,15.869,181.6156]
[1673358108891,67.23,15.886,15.869,181.6156]
[1673358109104,20.0,15.886,15.869,181.6156]
[1673358109514,67.22,15.887,15.869,181.6156]
[1673358110581,20.0,15.887,15.869,181.6156]
[1673358111528,162.926,15.888,15.869,181.6156]
[1673358111843,17.0,15.887,15.869,181.6156]
[1673358112994,20.0,15.886,15.869,181.6156]
[1673358113204,17.0,15.887,15.869,181.6156]
[1673358113424,20.0,15.886,15.869,181.6156]
[1673358114277,20.0,15.886,15.87,17.0]
[1673358114481,20.0,15.887,15.871,33.06]
[1673358115009,20.0,15.887,15.872,17.0]
[1673358115323,17.0,15.886,15.871,17.0]
[1673358115536,20.0,15.885,15.871,17.0]
[1673358115848,135.06,15.88,15.85,135.02]
[1673358116043,349.121,15.879,15.857,108.6961]
[1673358116255,180.27925296,15.879,15.857,108.6961]
[1673358116461,17.0,15.878,15.858,35.1]
[1673358116671,20.0,15.876,15.858,55.1]
[1673358117111,20.0,15.876,15.859,20.0]
[1673358117730,20.0,15.876,15.858,35.1]
[1673358118162,110.4156,15.88,15.861,20.0]
[1673358118377,110.4156,15.88,15.862,36.99]
[1673358118684,110.4156,15.88,15.864,20.0]
[1673358118881,110.4156,15.88,15.865,37.65]
[1673358119098,110.4156,15.88,15.866,20.0]
[1673358119307,110.4156,15.88,15.867,59.4]
[1673358119508,110.4156,15.88,15.868,20.0]
[1673358119720,110.4156,15.88,15.869,45.48]
[1673358122044,110.4156,15.88,15.868,40.0]
[1673358122448,110.4156,15.88,15.868,20.0]
[1673358123082,47.23,15.884,15.869,20.0]
[1673358123293,109.1367,15.886,15.869,20.0]
[1673358123549,109.1367,15.886,15.871,20.0]
[1673358123736,47.22,15.887,15.871,20.0]
[1673358123949,20.0,15.887,15.871,20.0]
[1673358124382,20.0,15.887,15.872,47.27]
[1673358125229,20.0,15.887,15.87,47.27]
[1673358125541,20.0,15.887,15.871,20.0]
[1673358125735,47.2,15.895,15.872,47.27]
[1673358125946,47.2,15.895,15.873,20.0]
[1673358126158,108.8389,15.896,15.874,47.26]
[1673358126367,108.8389,15.896,15.874,156.2459]
[1673358126576,20.0,15.895,15.876,20.0]
[1673358126794,20.0,15.895,15.877,67.25]
[1673358127208,67.2,15.895,15.877,67.25]
[1673358127422,17.0,15.894,15.877,67.25]
[1673358127630,20.0,15.893,15.877,67.25]
[1673358128051,20.0,15.893,15.877,20.0]
[1673358128483,20.0,15.893,15.878,47.25]
[1673358128685,20.0,15.893,15.879,20.0]
[1673358128920,47.2,15.894,15.879,20.0]
[1673358128921,67.2,15.895,15.879,20.0]
[1673358129098,67.2,15.895,15.877,40.0]
[1673358130480,67.2,15.895,15.877,20.0]
[1673358130900,20.0,15.895,15.877,20.0]
[1673358131101,20.0,15.895,15.878,67.25]
[1673358131431,20.0,15.895,15.879,20.0]
[1673358132160,64.2,15.894,15.878,67.25]
[1673358132357,64.2,15.894,15.878,20.0]
[1673358132568,20.0,15.893,15.878,20.0]
[1673358133192,64.2,15.894,15.878,20.0]
[1673358133643,47.2,15.894,15.878,20.0]
[1673358133828,47.2,15.895,15.878,20.0]
[1673358134039,20.0,15.894,15.878,20.0]
[1673358134253,47.2,15.895,15.878,20.0]
[1673358135195,20.0,15.894,15.878,20.0]
[1673358135942,47.2,15.895,15.878,20.0]
[1673358136151,20.0,15.894,15.878,20.0]
[1673358136472,47.2,15.895,15.878,20.0]
[1673358138353,20.0,15.894,15.878,20.0]
[1673358138975,20.0,15.895,15.879,20.0]
[1673358139516,20.0,15.895,15.878,67.25]
[1673358139831,156.0389,15.896,15.879,20.0]
[1673358140026,47.19,15.897,15.879,20.0]
[1673358140244,47.19,15.898,15.88,17.0]
[1673358140451,20.0,15.897,15.88,64.24]
[1673358140675,20.0,15.897,15.881,20.0]
[1673358140863,20.0,15.897,15.882,17.0]
[1673358141719,47.19,15.898,15.882,17.0]
[1673358141933,116.6131,15.899,15.882,17.0]
[1673358142151,20.0,15.898,15.882,17.0]
[1673358143188,20.0,15.898,15.882,64.24]
[1673358143403,20.0,15.898,15.883,20.0]
[1673358143921,116.6131,15.899,15.883,20.0]
[1673358144135,31.52003497,15.909,15.89,53.94]
[1673358144352,115.5453,15.914,15.892,20.0]
[1673358144550,115.5453,15.914,15.893,75.43009]
[1673358144755,20.0,15.912,15.895,20.0]
[1673358144985,47.15,15.913,15.896,37.0]
[1673358145178,115.5453,15.914,15.897,47.19]
[1673358145388,20.0,15.913,15.898,37.0]
[1673358145608,20.0,15.913,15.899,20.0]
[1673358145830,20.0,15.913,15.9,17.0]
[1673358146260,20.0,15.915,15.9,17.0]
[1673358147205,20.0,15.915,15.9,64.18]
[1673358148570,20.0,15.917,15.9,91.07]
[1673358148970,20.0,15.917,15.901,20.0]
[1673358149175,20.0,15.917,15.902,47.18]
[1673358149394,20.0,15.917,15.901,47.18]
[1673358150236,20.0,15.917,15.902,20.0]
[1673358150659,20.0,15.918,15.903,1.92]
[1673358150867,20.0,15.918,15.902,20.0]
[1673358151089,20.0,15.918,15.903,47.18]
[1673358151300,20.0,15.918,15.902,47.18]
[1673358151512,20.0,15.918,15.9,182.6412]
[1673358152346,20.0,15.918,15.901,20.0]
[1673358153195,20.0,15.918,15.902,47.18]
[1673358153405,20.0,15.918,15.901,47.18]
[1673358153603,20.0,15.918,15.902,1.92]
[1673358154041,20.0,15.918,15.901,47.18]
[1673358154356,67.13,15.918,15.902,17.0]
[1673358154564,20.0,15.918,15.902,17.0]
[1673358155175,20.0,15.918,15.902,37.0]
[1673358155822,20.0,15.918,15.902,17.0]
[1673358156038,47.13,15.917,15.9,108.5712]
[1673358156232,38.16394307,15.901,15.9,108.5712]
[1673358156444,38.16394307,15.901,15.899,20.0]
[1673358156656,38.16394307,15.901,15.896,20.0]
[1673358157594,38.16394307,15.901,15.895,20.0]
[1673358158460,38.16394307,15.901,15.896,47.2]
[1673358158651,38.16394307,15.901,15.897,20.0]
[1673358159174,38.16394307,15.901,15.895,20.0]
[1673358159384,38.16394307,15.901,15.896,47.2]
[1673358159595,38.16394307,15.901,15.897,20.0]
[1673358160249,38.16394307,15.901,15.895,40.0]
[1673358163808,38.16394307,15.901,15.895,20.0]
[1673358164972,38.16394307,15.901,15.89,101.58861035]
[1673358165170,20.0,15.9,15.889,118.9734]
[1673358165910,67.18,15.9,15.889,118.9734]
[1673358166427,20.0,15.9,15.889,118.9734]
[1673358166848,20.0,15.9,15.89,17.0]
[1673358170136,20.0,15.9,15.891,20.0]
[1673358170439,20.0,15.9,15.892,17.0]
[1673358170652,20.0,15.9,15.892,14.842334]
[1673358178548,20.0,15.901,15.892,14.842334]
[1673358182513,47.18,15.903,15.891,20.0]
[1673358182723,20.0,15.904,15.892,17.0]
[1673358183350,20.0,15.904,15.891,47.21]
[1673358183585,20.0,15.904,15.892,20.0]
[1673358184202,20.0,15.906,15.892,20.0]
[1673358184521,20.0,15.906,15.893,1.92]
[1673358188736,20.0,15.906,15.891,47.21]
[1673358188928,20.0,15.906,15.89,67.21]
[1673358189140,20.0,15.906,15.891,20.0]
[1673358191134,67.17,15.906,15.891,20.0]
[1673358191345,20.0,15.906,15.891,20.0]
[1673358191760,20.0,15.906,15.892,20.0]
[1673358194299,20.0,15.91,15.892,20.0]
[1673358194300,115.7305,15.912,15.893,69.13]
[1673358194491,115.7305,15.912,15.894,7.25963]
[1673358194709,20.0,15.911,15.896,20.0]
[1673358194921,20.0,15.911,15.897,68.15]
[1673358195132,20.0,15.911,15.898,0.96]
[1673358195347,115.7305,15.912,15.899,0.96]
[1673358195658,115.7305,15.912,15.899,20.96]
[1673358195871,115.7305,15.912,15.9,17.0]
[1673358196068,115.7305,15.912,15.901,20.0]
[1673358196286,156.5427,15.917,15.902,0.96]
[1673358196709,20.0,15.916,15.902,20.96]
[1673358197546,20.0,15.916,15.903,17.0]
[1673358198501,47.13,15.919,15.904,21.92]
[1673358198736,95.8487,15.92,15.906,20.0]
[1673358198945,95.8487,15.92,15.907,21.92]
[1673358199160,108.7747,15.923,15.907,21.92]
[1673358199161,108.7747,15.923,15.908,47.16]
[1673358199367,108.7747,15.923,15.909,21.92]
[1673358199577,5.6687597,15.925,15.91,26.91]
[1673358199787,5.6687597,15.925,15.912,20.0]
[1673358200197,5.6687597,15.925,15.913,21.92]
[1673358200403,5.6687597,15.925,15.914,20.0]
[1673358200627,5.6687597,15.925,15.915,20.0]
[1673358200829,5.6687597,15.925,15.916,0.96]
[1673358201050,5.6687597,15.925,15.915,20.0]
[1673358201661,5.6687597,15.925,15.911,126.58467]
[1673358201886,47.11,15.924,15.906,67.17]
[1673358202094,47.11,15.924,15.908,20.0]
[1673358202410,5.6687597,15.925,15.908,20.0]
[1673358202620,47.11,15.924,15.908,20.0]
[1673358204089,47.11,15.924,15.909,20.0]
[1673358204620,47.11,15.924,15.91,20.0]
[1673358206311,5.6687597,15.925,15.911,16.19973038]
[1673358206624,5.6687597,15.925,15.912,101.42973038]
[1673358206835,5.6687597,15.925,15.913,1.92]
[1673358207152,5.6687597,15.925,15.914,20.0]
[1673358207352,5.6687597,15.925,15.915,20.96]
[1673358207564,5.6687597,15.925,15.915,20.0]
[1673358207881,5.6687597,15.925,15.916,20.96]
[1673358208085,5.6687597,15.925,15.917,20.0]
[1673358210511,5.6687597,15.925,15.913,20.0]
[1673358210712,5.6687597,15.925,15.912,20.0]
[1673358211565,5.6687597,15.925,15.911,20.0]
[1673358212590,5.6687597,15.925,15.91,20.0]
[1673358213014,5.6687597,15.925,15.91,46.9]
[1673358213237,5.6687597,15.925,15.911,14.27973038]
[1673358213454,5.6687597,15.925,15.911,61.42973038]
[1673358213674,5.6687597,15.925,15.912,40.96]
[1673358213867,5.6687597,15.925,15.913,0.96]
[1673358214073,5.6687597,15.925,15.914,47.14]
[1673358214284,5.6687597,15.925,15.915,20.0]
[1673358214499,5.6687597,15.925,15.912,40.0]
[1673358214916,5.6687597,15.925,15.913,61.42973038]
[1673358215131,5.6687597,15.925,15.914,20.0]
[1673358215444,5.6687597,15.925,15.915,20.0]
[1673358218279,5.6687597,15.925,15.916,17.0]
[1673358218610,5.6687597,15.925,15.917,20.0]
[1673358219132,5.6687597,15.925,15.916,20.0]
[1673358219667,5.6687597,15.925,15.917,17.0]
[1673358219976,5.6687597,15.925,15.918,20.0]
[1673358220714,5.6687597,15.925,15.916,20.0]
[1673358221342,5.6687597,15.925,15.917,17.0]
[1673358221536,5.6687597,15.925,15.918,20.0]
[1673358222167,5.6687597,15.925,15.916,20.0]
[1673358222382,5.6687597,15.925,15.917,20.96]
[1673358222595,5.6687597,15.925,15.918,20.0]
[1673358223546,5.6687597,15.925,15.919,20.0]
[1673358223761,5.6687597,15.925,15.92,20.0]
[1673358223951,5.6687597,15.925,15.921,20.0]
[1673358226175,5.6687597,15.925,15.921,67.12]
[1673358226392,5.6687597,15.925,15.922,17.0]
[1673358228580,5.6687597,15.925,15.923,20.0]
[1673358229334,5.6687597,15.925,15.924,17.0]
[1673358229747,5.6687597,15.925,15.921,20.0]
[1673358232502,5.6687597,15.925,15.92,20.0]
[1673358233320,24.95627354,15.919,15.916,47.14]
[1673358233518,24.95627354,15.919,15.915,47.14]
[1673358233735,24.95627354,15.919,15.914,20.0]
[1673358234469,24.95627354,15.919,15.912,20.0]
[1673358234685,24.95627354,15.919,15.91,20.0]
[1673358239935,24.95627354,15.919,15.91,67.15]
[1673358242262,24.95627354,15.919,15.91,20.0]
[1673358242576,24.95627354,15.919,15.909,20.0]
[1673358242787,24.95627354,15.919,15.91,20.0]
[1673358243611,24.95627354,15.919,15.909,20.0]
[1673358258345,24.95627354,15.919,15.906,20.0]
[1673358258556,24.95627354,15.919,15.907,67.16]
[1673358258771,24.95627354,15.919,15.908,20.0]
[1673358259406,24.95627354,15.919,15.909,20.0]
[1673358259611,24.95627354,15.919,15.91,20.0]
[1673358260247,24.95627354,15.919,15.908,20.0]
[1673358267195,24.95627354,15.919,15.909,20.0]
[1673358267505,24.95627354,15.919,15.91,20.0]
[1673358268339,20.0,15.922,15.91,20.0]
[1673358271800,20.0,15.92,15.91,20.0]
[1673358272014,20.0,15.92,15.908,20.0]
[1673358272327,136.1255,15.92,15.908,20.0]
[1673358276231,136.1255,15.92,15.907,20.0]
[1673358277995,116.1255,15.92,15.908,20.0]
[1673358278422,116.1255,15.92,15.909,17.0]
[1673358278626,116.1255,15.92,15.911,20.0]
[1673358279591,116.1255,15.92,15.91,20.0]
[1673358279785,116.1255,15.92,15.909,20.0]
[1673358281694,52.7787597,15.925,15.91,26.92]
[1673358282009,5.6687597,15.925,15.911,103.34973038]
[1673358282224,5.6687597,15.925,15.912,17.0]
[1673358282409,5.6687597,15.925,15.913,69.07]
[1673358282620,5.6687597,15.925,15.914,20.0]
[1673358283041,5.6687597,15.925,15.916,20.0]
[1673358283269,5.6687597,15.925,15.917,20.0]
[1673358286839,5.6687597,15.925,15.918,20.0]
[1673358287162,5.6687597,15.925,15.919,20.0]
[1673358287690,5.6687597,15.925,15.92,20.0]
[1673358289885,5.6687597,15.925,15.921,17.0]
[1673358290829,5.6687597,15.925,15.922,20.0]
[1673358291047,5.6687597,15.925,15.92,20.0]
[1673358299357,5.6687597,15.925,15.921,17.0]
[1673358302613,5.6687597,15.925,15.919,20.0]
[1673358303247,5.6687597,15.925,15.916,20.0]
[1673358304194,5.6687597,15.925,15.914,20.0]
[1673358304510,20.0,15.923,15.912,20.0]
[1673358305853,20.0,15.923,15.913,17.0]
[1673358306587,20.0,15.923,15.909,133.2082]
[1673358306902,20.0,15.923,15.911,17.0]
[1673358312610,20.0,15.923,15.909,20.0]
[1673358312818,20.0,15.923,15.91,20.0]
[1673358313344,17.0,15.922,15.91,20.0]
[1673358313966,20.0,15.923,15.91,20.0]
[1673358314181,47.11,15.924,15.911,20.0]
[1673358314390,5.6687597,15.925,15.911,20.0]
[1673358314602,5.6687597,15.925,15.912,67.15]
[1673358314809,5.6687597,15.925,15.912,200.06123038]
[1673358315021,5.6687597,15.925,15.913,1.92]
[1673358315239,5.6687597,15.925,15.914,47.14]
[1673358315546,5.6687597,15.925,15.916,20.0]
[1673358315763,5.6687597,15.925,15.917,20.0]
[1673358315960,5.6687597,15.925,15.918,20.0]
[1673358316288,5.6687597,15.925,15.919,20.0]
[1673358320697,5.6687597,15.925,15.917,20.0]
[1673358322191,5.6687597,15.925,15.918,20.0]
[1673358322375,5.6687597,15.925,15.92,20.0]
[1673358323328,5.6687597,15.925,15.918,20.0]
[1673358323532,5.6687597,15.925,15.919,20.0]
[1673358325238,5.6687597,15.925,15.92,20.0]
[1673358327962,5.6687597,15.925,15.918,20.0]
[1673358328170,20.0,15.924,15.911,20.0]
[1673358328387,47.12,15.923,15.911,20.0]
[1673358329843,20.0,15.922,15.911,20.0]
[1673358330066,47.12,15.921,15.911,20.0]
[1673358330602,20.0,15.922,15.909,20.0]
[1673358332157,20.0,15.922,15.91,20.0]
[1673358332588,20.0,15.922,15.91,15.8975457]
[1673358334906,20.0,15.922,15.91,7.6926371]
[1673358335093,20.0,15.922,15.909,20.0]
[1673358336370,20.0,15.922,15.91,20.0]
[1673358338580,26.92,15.92,15.91,20.0]
[1673358338769,20.0,15.919,15.91,20.0]
[1673358338978,20.0,15.919,15.904,47.17]
[1673358339191,0.74043084,15.917,15.901,47.18]
[1673358339402,20.74043084,15.915,15.899,20.0]
[1673358339609,47.14,15.914,15.899,20.0]
[1673358339823,20.0,15.913,15.899,20.0]
[1673358341527,20.0,15.913,15.9,20.0]
[1673358341852,47.14,15.914,15.901,20.0]
[1673358343412,20.0,15.913,15.901,20.0]
[1673358344584,47.14,15.914,15.901,20.0]
[1673358347205,47.14,15.915,15.901,20.0]
[1673358347943,20.0,15.914,15.901,20.0]
[1673358348766,67.14,15.916,15.901,20.0]
[1673358349495,47.14,15.916,15.901,67.18]
[1673358349832,47.11,15.924,15.902,29.17598]
[1673358350026,20.0,15.923,15.904,20.0]
[1673358350232,20.0,15.923,15.906,20.0]
[1673358350462,20.0,15.923,15.907,69.08]
[1673358350770,20.0,15.923,15.908,20.0]
[1673358350964,47.11,15.924,15.909,47.16]
[1673358351171,47.11,15.924,15.91,20.0]
[1673358351515,20.0,15.923,15.91,20.0]
[1673358351707,20.0,15.923,15.909,20.0]
[1673358353523,67.11,15.924,15.909,20.0]
[1673358353708,67.11,15.924,15.91,20.0]
[1673358354678,47.11,15.924,15.91,20.0]
[1673358354886,5.6687597,15.925,15.911,1.92]
[1673358355088,5.6687597,15.925,15.911,49.07]
[1673358355304,5.6687597,15.925,15.912,20.0]
[1673358356143,5.6687597,15.925,15.911,49.07]
[1673358356355,52.7787597,15.925,15.912,17.0]
[1673358356763,20.0,15.924,15.912,17.0]
[1673358357081,52.7787597,15.925,15.912,17.0]
[1673358357286,52.7787597,15.925,15.91,20.0]
[1673358357717,52.7787597,15.925,15.911,17.0]
[1673358357923,20.0,15.924,15.911,17.0]
[1673358358133,20.0,15.924,15.909,20.0]
[1673358358351,47.12,15.923,15.91,17.0]
[1673358358555,20.0,15.922,15.908,40.0]
[1673358358760,47.12,15.923,15.908,40.0]
[1673358358978,5.6687597,15.925,15.91,46.95]
[1673358359174,5.6687597,15.925,15.911,74.40187]
[1673358359385,5.6687597,15.925,15.912,8.21142]
[1673358359601,5.6687597,15.925,15.913,75.36096]
[1673358359823,5.6687597,15.925,15.914,8.2105]
[1673358360041,5.6687597,15.925,15.915,88.1]
[1673358360243,5.6687597,15.925,15.916,17.96]
[1673358360462,5.6687597,15.925,15.917,67.13]
[1673358360863,5.6687597,15.925,15.918,20.0]
[1673358361074,5.6687597,15.925,15.919,20.0]
[1673358362345,5.6687597,15.925,15.913,47.15]
[1673358362556,5.6687597,15.925,15.915,20.0]
[1673358363086,5.6687597,15.925,15.907,47.16]
[1673358363283,47.11,15.924,15.907,157.3788]
[1673358363484,5.6687597,15.925,15.907,157.3788]
[1673358363848,25.6687597,15.925,15.907,157.3788]
[1673358364160,25.6687597,15.925,15.909,47.16]
[1673358364358,5.6687597,15.925,15.91,21.92]
[1673358364569,5.6687597,15.925,15.911,47.15]
[1673358364787,5.6687597,15.925,15.912,21.92]
[1673358366354,5.6687597,15.925,15.912,20.0]
[1673358366876,5.6687597,15.925,15.912,136.02]
[1673358368049,5.6687597,15.925,15.913,9.17096]
[1673358368265,5.6687597,15.925,15.914,20.0]
[1673358368779,5.6687597,15.925,15.916,20.0]
[1673358368990,5.6687597,15.925,15.915,47.14]
[1673358369310,5.6687597,15.925,15.914,20.0]
[1673358370671,5.6687597,15.925,15.912,116.02]
[1673358370894,47.11,15.924,15.912,116.02]
[1673358371085,47.11,15.924,15.913,20.0]
[1673358371919,52.7787597,15.925,15.913,20.0]
[1673358372863,52.7787597,15.925,15.912,116.02]
[1673358373286,17.0,15.924,15.909,20.0]
[1673358373606,20.0,15.924,15.91,20.0]
[1673358375509,20.0,15.924,15.905,20.0]
[1673358375510,26.91,15.92,15.9,20.0]
[1673358375716,20.0,15.918,15.9,20.0]
[1673358375928,20.0,15.916,15.9,20.0]
[1673358376136,47.14,15.915,15.9,20.0]
[1673358376874,47.13,15.917,15.9,20.0]
[1673358377619,20.0,15.916,15.9,20.0]
[1673358377814,47.14,15.915,15.9,20.0]
[1673358378647,47.14,15.915,15.899,112.0661]
[1673358378879,20.0,15.914,15.9,40.0]
[1673358379840,47.14,15.915,15.901,17.0]
[1673358380367,47.14,15.915,15.902,20.0]
[1673358380574,47.13,15.917,15.902,20.0]
[1673358381398,20.0,15.916,15.902,20.0]
[1673358381607,47.14,15.915,15.902,20.0]
[1673358381825,47.13,15.917,15.902,20.0]
[1673358382455,47.13,15.917,15.903,17.0]
[1673358383390,20.0,15.916,15.903,17.0]
[1673358383829,47.13,15.917,15.903,17.0]
[1673358386380,47.13,15.918,15.903,17.0]
[1673358387220,47.12,15.923,15.904,1.92]
[1673358387427,47.12,15.923,15.906,20.0]
[1673358387635,72.16794,15.924,15.907,66.43]
[1673358387836,52.16794,15.924,15.908,20.0]
[1673358388046,52.16794,15.924,15.909,20.0]
[1673358388591,52.16794,15.924,15.91,37.0]
[1673358392984,5.05794,15.924,15.91,83.88]
[1673358394270,5.05794,15.924,15.91,110.63]
[1673358395211,5.05794,15.924,15.911,1.92]
[1673358395615,5.05794,15.924,15.91,110.63]
[1673358396986,5.05794,15.924,15.91,93.63]
[1673358399005,5.05794,15.924,15.911,1.92]
[1673358399201,5.05794,15.924,15.913,20.0]
[1673358399734,5.05794,15.924,15.914,17.0]
[1673358401102,5.05794,15.924,15.907,34.83]
[1673358401287,26.91,15.92,15.905,20.0]
[1673358401498,20.0,15.919,15.905,20.0]
[1673358402047,47.12,15.923,15.905,20.0]
[1673358402261,47.12,15.923,15.906,49.73]
[1673358402450,47.12,15.923,15.907,20.0]
[1673358402661,47.12,15.923,15.908,20.0]
[1673358404355,47.12,15.923,15.909,20.0]
[1673358404552,47.12,15.923,15.91,20.0]
[1673358406029,52.16794,15.924,15.91,20.0]
[1673358406237,5.05794,15.924,15.91,55.86]
[1673358406459,5.05794,15.924,15.911,21.92]
[1673358406658,5.05794,15.924,15.912,52.89]
[1673358406876,5.05794,15.924,15.913,1.92]
[1673358407079,5.05794,15.924,15.913,21.92]
[1673358407294,5.05794,15.924,15.913,20.0]
[1673358408042,5.05794,15.924,15.914,17.0]
[1673358408444,5.05794,15.924,15.915,20.0]
[1673358408884,5.05794,15.924,15.916,17.0]
[1673358410689,5.05794,15.924,15.913,20.0]
[1673358412474,5.05794,15.924,15.914,31.99]
[1673358412661,5.05794,15.924,15.915,20.0]
[1673358413301,5.05794,15.924,15.917,20.0]
[1673358413523,5.05794,15.924,15.918,69.19]
[1673358413714,5.05794,15.924,15.919,20.0]
[1673358413924,4e-05,15.924,15.92,53.65]
[1673358414138,5.6687597,15.925,15.921,20.0]
[1673358414351,5.6687597,15.925,15.922,17.0]
[1673358415104,5.97e-05,15.925,15.922,17.0]
[1673358415307,5.97e-05,15.925,15.923,20.0]
[1673358415831,5.97e-05,15.925,15.924,17.0]